bitfinex/quotes_ETHUSD_20250909
["timestamp","ask_amount","ask_price","bid_price","bid_amount"]
[1757430270312,0.025,4297.8,4297.7,3.27322597]
[1757430270511,0.025,4297.8,4297.7,3.68692597]
[1757430270716,0.025,4297.8,4297.7,3.71019422]
[1757430270905,0.02034467,4297.8,4297.7,4.31157689]
[1757430271095,0.02034467,4297.8,4297.7,4.28830864]
[1757430271538,0.02034467,4297.8,4297.7,7.40430864]
[1757430271929,0.02034467,4297.8,4297.7,6.99060864]
[1757430272237,0.02034467,4297.8,4297.7,6.87460864]
[1757430272411,0.02034467,4297.8,4297.7,7.28830864]
[1757430273239,0.02034467,4297.8,4297.7,4.54778267]
[1757430273605,0.02034467,4297.8,4297.7,7.28830864]
[1757430273936,0.02034467,4297.8,4297.7,7.52106847]
[1757430274164,0.02034467,4297.8,4297.7,7.40430864]
[1757430275239,0.02034467,4297.8,4297.7,3.9464]
[1757430275444,0.02034467,4297.8,4297.7,6.27322597]
[1757430277743,0.02034467,4297.8,4297.7,3.6495]
[1757430277963,0.01954467,4297.8,4297.7,3.0]
[1757430278135,0.76194467,4297.8,4297.2,0.6348]
[1757430278463,0.76194467,4297.8,4297.2,3.6348]
[1757430278757,0.116,4297.3,4297.2,3.0]
[1757430278927,0.116,4297.3,4297.2,3.9457]
[1757430279328,0.421,4297.3,4296.9,1.786]
[1757430279566,0.116,4297.1,4296.6,0.6348]
[1757430279764,0.4374,4297.2,4296.6,0.6348]
[1757430280059,0.116,4296.8,4296.6,3.6348]
[1757430280259,0.116,4296.8,4296.7,5.63826751]
[1757430280467,0.116,4296.8,4296.7,6.68676751]
[1757430280638,0.01954467,4297.8,4297.7,2.32682597]
[1757430280836,0.116,4299.0,4298.7,2.32628469]
[1757430281035,0.116,4299.0,4298.7,9.58418469]
[1757430281243,0.116,4299.0,4298.7,11.41004121]
[1757430281667,0.116,4299.0,4298.7,11.09914121]
[1757430282180,2.58171543,4299.9,4298.7,11.41004121]
[1757430282181,0.04,4299.9,4298.7,11.41004121]
[1757430282336,0.117,4299.3,4298.7,13.60974121]
[1757430283766,0.117,4299.3,4298.7,13.19604121]
[1757430284065,0.117,4299.3,4298.7,9.24904121]
[1757430284222,0.117,4299.3,4298.7,13.60774121]
[1757430285723,0.117,4299.3,4298.7,13.19404121]
[1757430286543,0.117,4299.3,4298.7,13.60774121]
[1757430286869,0.001,4299.3,4298.7,13.60774121]
[1757430287924,0.001,4299.3,4298.8,5.32623057]
[1757430288161,0.001,4299.3,4299.2,2.32601414]
[1757430288323,0.001,4299.3,4299.2,9.69491414]
[1757430288537,0.001,4299.3,4299.2,10.74341414]
[1757430288777,0.116,4300.3,4299.2,10.74341414]
[1757430288778,0.025,4300.8,4299.3,33.0]
[1757430288980,0.04,4302.9,4301.0,2.32504068]
[1757430288981,0.21563951,4302.7,4301.0,2.32504068]
[1757430289273,0.4374,4302.6,4301.4,2.32482447]
[1757430289427,0.4374,4302.2,4301.4,6.97124824]
[1757430289765,0.7434,4301.5,4301.4,3.948]
[1757430289926,0.7434,4301.5,4301.0,2.4198]
[1757430290136,0.4374,4301.4,4301.0,1.785]
[1757430290462,0.305,4301.1,4300.6,2.441]
[1757430290661,0.4374,4301.0,4300.5,2.441]
[1757430290831,0.305,4300.6,4300.5,3.952]
[1757430291031,3.41359873,4300.6,4299.5,0.6348]
[1757430291230,0.4374,4300.5,4299.7,3.0]
[1757430291889,0.305,4299.8,4299.1,0.04]
[1757430292181,0.4374,4299.7,4299.2,3.952]
[1757430293576,2.54104703,4300.1,4299.2,3.952]
[1757430293787,0.4374,4299.6,4299.2,3.952]
[1757430294285,2.32548288,4300.2,4299.3,2.96075946]
[1757430294487,0.4374,4300.3,4299.3,0.6348]
[1757430294652,0.4374,4300.3,4299.4,2.32590594]
[1757430294843,0.4374,4300.3,4299.5,3.951]
[1757430295048,0.4374,4300.3,4299.5,6.27681229]
[1757430295247,0.4374,4300.3,4299.5,7.28795116]
[1757430295248,0.21560615,4300.2,4299.5,7.28795116]
[1757430295489,0.21560615,4300.1,4299.5,7.28795116]
[1757430295687,0.21560615,4300.2,4299.5,7.28795116]
[1757430295986,0.4374,4300.3,4299.5,4.96213887]
[1757430295987,0.21560615,4300.1,4299.5,4.96213887]
[1757430296184,0.4374,4300.3,4299.5,4.96213887]
[1757430296185,0.21560615,4300.2,4299.5,4.96213887]
[1757430296486,0.4374,4300.3,4299.5,4.96213887]
[1757430296487,0.21560615,4300.1,4299.5,4.96213887]
[1757430296726,0.21560615,4300.0,4299.5,4.96213887]
[1757430296889,0.21560615,4299.9,4299.6,0.79228389]
[1757430297187,0.025,4299.8,4299.6,3.79228389]
[1757430297387,0.025,4299.8,4299.6,6.11805463]
[1757430297561,0.025,4299.8,4299.6,6.75285463]
[1757430297762,0.025,4299.8,4299.6,4.42708389]
[1757430297961,0.025,4299.8,4299.7,0.83780839]
[1757430298157,0.025,4299.8,4299.7,1.47260839]
[1757430298552,0.025,4299.8,4299.7,0.83780839]
[1757430298748,0.7674,4299.8,4299.6,3.948]
[1757430299089,0.116,4299.6,4299.1,0.04]
[1757430299255,0.65350546,4299.5,4299.2,3.947]
[1757430299457,0.116,4299.6,4299.2,3.947]
[1757430299657,0.21615626,4299.5,4299.2,3.947]
[1757430299858,0.116,4299.6,4299.2,4.8358]
[1757430300155,0.21615631,4299.5,4299.2,0.8888]
[1757430300496,0.116,4299.2,4299.1,0.04]
[1757430300821,0.33218061,4299.2,4299.1,0.04]
[1757430301029,0.63718061,4299.2,4299.1,0.04]
[1757430301195,1.07458061,4299.2,4299.1,0.04]
[1757430303389,3.40059475,4299.2,4299.1,0.04]
[1757430303591,3.40159475,4299.2,4299.1,0.04]
[1757430304006,3.40079475,4299.2,4299.1,0.04]
[1757430305092,3.79259475,4299.2,4299.1,0.04]
[1757430305286,5.13777796,4299.2,4299.1,0.04]
[1757430305521,4.95936094,4299.2,4299.1,0.04]
[1757430305745,6.14316094,4299.2,4299.1,0.04]
[1757430306247,0.43056359,4299.2,4299.1,0.04]
[1757430306522,0.21742383,4299.2,4299.1,0.04]
[1757430306919,0.97312383,4299.2,4299.1,0.04]
[1757430307088,3.29913797,4299.2,4299.1,0.04]
[1757430307288,4.10771791,4299.2,4299.1,0.04]
[1757430307486,8.65891243,4299.2,4299.1,0.04]
[1757430307688,8.64233249,4299.2,4299.1,0.04]
[1757430308190,8.25053249,4299.2,4299.1,0.04]
[1757430309183,1.18651835,4299.2,4299.1,0.04]
[1757430309398,0.21742383,4299.2,4299.1,0.04]
[1757430309889,2.54343797,4299.2,4299.1,0.04]
[1757430310094,3.29913797,4299.2,4299.1,0.04]
[1757430310609,0.97312383,4299.2,4299.1,0.04]
[1757430310816,3.29913797,4299.2,4299.1,0.04]
[1757430310998,4.10771791,4299.2,4299.1,0.04]
[1757430311324,4.87823249,4299.2,4299.1,0.04]
[1757430312112,5.00638456,4299.2,4299.1,0.04]
[1757430312429,4.87823249,4299.2,4299.1,0.04]
[1757430312929,5.00633271,4299.2,4299.1,0.04]
[1757430313158,1.63971857,4299.2,4299.1,0.04]
[1757430313328,0.21742383,4299.2,4299.1,0.04]
[1757430313494,0.21742383,4299.2,4299.1,0.9528]
[1757430314025,0.21742383,4299.2,4299.1,0.6668]
[1757430316109,0.21742383,4299.2,4299.1,0.9528]
[1757430316344,0.001,4299.2,4299.1,3.88324889]
[1757430316531,0.21742383,4299.2,4299.1,4.29694889]
[1757430316740,0.001,4299.2,4299.1,4.29694889]
[1757430316913,0.001,4299.2,4299.1,1.97088065]
[1757430317248,0.001,4299.2,4299.1,3.88324889]
[1757430317609,0.001,4299.2,4299.1,1.55718065]
[1757430317949,0.2898,4299.2,4299.1,0.04]
[1757430318243,0.001,4299.2,4299.1,0.04]
[1757430318449,0.001,4299.2,4299.1,0.9528]
[1757430318648,0.001,4299.2,4299.1,3.27886824]
[1757430318812,0.001,4299.2,4299.1,3.69256824]
[1757430319012,0.001,4299.2,4299.1,4.36432506]
[1757430319216,0.001,4299.2,4299.1,7.36432506]
[1757430320026,0.001,4299.7,4299.6,2.32579774]
[1757430320224,0.001,4299.7,4299.2,1.87682385]
[1757430320447,0.001,4299.7,4299.5,0.6268]
[1757430320745,0.001,4299.7,4299.6,5.78297774]
[1757430321047,0.001,4299.7,4299.6,6.69577774]
[1757430322441,0.7567,4299.7,4299.1,0.042]
[1757430322617,0.21701906,4299.6,4299.2,3.946]
[1757430322820,0.21701906,4299.5,4299.3,0.6268]
[1757430323024,0.2898,4299.7,4299.2,3.946]
[1757430323025,0.21701906,4299.4,4299.2,3.946]
[1757430323229,2.32676401,4299.7,4299.2,3.946]
[1757430323429,0.21704175,4299.6,4299.2,3.946]
[1757430323662,0.21704175,4299.5,4299.2,3.946]
[1757430323864,0.4669,4299.4,4299.2,3.946]
[1757430324225,0.21704175,4299.5,4299.1,0.042]
[1757430324483,0.21704175,4299.6,4299.1,0.042]
[1757430324678,0.21704175,4299.5,4299.1,0.6688]
[1757430324978,0.21704175,4299.6,4299.2,0.6268]
[1757430325272,0.001,4299.7,4299.5,0.286]
[1757430325273,0.21804969,4299.7,4299.5,0.286]
[1757430325424,0.21804969,4299.7,4299.6,0.6268]
[1757430325625,0.21804969,4299.7,4299.6,0.9128]
[1757430325827,0.001,4299.7,4299.6,3.9128]
[1757430326083,0.001,4299.7,4299.6,7.43777774]
[1757430326249,0.001,4299.7,4299.6,9.22277774]
[1757430327479,0.001,4299.7,4299.6,5.57048]
[1757430327676,0.001,4299.7,4299.6,8.729]
[1757430329824,0.2898,4299.7,4299.6,8.729]
[1757430330031,0.2898,4299.7,4299.6,1.785]
[1757430330032,0.7567,4299.7,4299.6,1.785]
[1757430330267,0.7567,4299.7,4299.1,0.68428]
[1757430330268,0.7567,4299.7,4299.1,3.984]
[1757430330269,1.90727492,4299.7,4299.1,3.984]
[1757430330596,2.32601414,4299.2,4299.1,0.042]
[1757430330891,0.21704969,4299.2,4299.1,0.042]
[1757430331096,2.32601414,4299.2,4299.1,0.042]
[1757430331272,2.54301571,4299.3,4299.1,0.042]
[1757430331597,2.61481414,4299.2,4299.1,0.042]
[1757430331738,3.81154382,4299.2,4299.1,0.042]
[1757430332161,3.81153477,4299.2,4299.1,0.042]
[1757430332560,4.60353477,4299.2,4299.1,0.042]
[1757430332891,9.11923477,4299.2,4299.1,0.042]
[1757430333691,8.54553477,4299.2,4299.1,0.042]
[1757430333871,9.11923477,4299.2,4299.1,0.042]
[1757430334081,9.33328032,4299.2,4299.1,0.042]
[1757430334885,9.46168799,4299.2,4299.1,0.042]
[1757430335788,9.33328032,4299.2,4299.1,0.042]
[1757430335973,9.4616643,4299.2,4299.1,0.042]
[1757430338189,8.8879643,4299.2,4299.1,0.042]
[1757430338760,8.8889643,4299.2,4299.1,0.042]
[1757430338960,4.9469643,4299.2,4299.1,0.042]
[1757430339202,8.8889643,4299.2,4299.1,0.042]
[1757430339704,4.9469643,4299.2,4299.1,0.042]
[1757430339908,7.45280033,4299.2,4299.1,0.042]
[1757430340515,8.24480033,4299.2,4299.1,0.042]
[1757430343511,5.16608619,4299.2,4299.1,0.042]
[1757430343717,5.16608619,4299.2,4299.1,1.0926]
[1757430343718,0.43208619,4299.2,4299.1,1.0926]
[1757430343921,0.117,4299.2,4299.1,3.83236824]
[1757430344079,0.1162,4299.7,4299.2,3.0]
[1757430344278,0.1162,4299.7,4299.6,2.32579774]
[1757430344611,0.1162,4299.7,4299.6,2.64199774]
[1757430344790,0.0002,4299.7,4299.6,6.81335571]
[1757430345000,0.0002,4299.7,4299.6,6.79009774]
[1757430345316,0.001,4300.1,4300.0,2.32558139]
[1757430345480,0.001,4300.1,4300.0,5.3488372]
[1757430345811,0.001,4300.1,4300.0,6.78988139]
[1757430346716,0.001,4301.5,4301.0,2.32504068]
[1757430346888,0.001,4301.5,4301.0,2.34829108]
[1757430347087,0.001,4301.5,4301.0,7.7156815]
[1757430347587,0.001,4301.5,4301.0,5.07444082]
[1757430347787,0.001,4301.5,4301.0,4.0506]
[1757430348116,0.001,4301.5,4301.0,6.37564068]
[1757430349116,0.001,4301.5,4301.0,4.0506]
[1757430349345,0.001,4301.5,4301.0,3.7344]
[1757430349503,0.001,4301.5,4301.0,1.0506]
[1757430349809,0.001,4301.5,4301.0,3.05944068]
[1757430350115,0.001,4301.5,4301.0,3.37564068]
[1757430350412,0.001,4301.5,4301.0,1.0506]
[1757430350615,0.001,4301.5,4301.0,0.7344]
[1757430351181,2.32577063,4301.5,4301.0,0.7344]
[1757430351383,0.001,4301.5,4301.0,0.7344]
[1757430351719,0.001,4301.5,4301.0,3.05944068]
[1757430352017,2.32577253,4301.5,4301.0,0.7344]
[1757430352177,0.001,4301.5,4301.0,0.7344]
[1757430352380,0.001,4301.5,4301.0,3.37564068]
[1757430353523,0.001,4301.5,4301.0,0.7344]
[1757430353939,0.2891,4301.1,4300.6,3.941]
[1757430354095,0.001,4301.1,4300.8,2.32512726]
[1757430354490,0.001,4301.1,4300.8,3.05952726]
[1757430354806,0.001,4301.1,4300.8,0.7344]
[1757430355521,0.116,4300.9,4300.8,3.0595488]
[1757430355726,0.116,4300.9,4300.8,0.7344]
[1757430355925,0.116,4300.9,4300.7,3.0]
[1757430356402,0.1152,4300.9,4300.8,3.3757488]
[1757430356798,0.1152,4300.9,4300.7,3.0]
[1757430356997,0.752,4300.8,4300.1,3.0]
[1757430357196,0.752,4300.8,4300.0,0.002]
[1757430357197,1.07297854,4300.8,4300.0,0.002]
[1757430357527,0.116,4300.1,4300.0,0.002]
[1757430357904,0.116,4300.1,4300.0,3.37818139]
[1757430358211,2.87039539,4301.1,4300.0,3.37818139]
[1757430358212,0.116,4300.6,4300.0,1.4663]
[1757430358411,0.116,4300.6,4300.5,2.32531101]
[1757430358929,0.116,4300.6,4300.5,1.0506]
[1757430359109,0.116,4300.6,4300.5,3.37591101]
[1757430359316,0.116,4300.6,4300.5,1.0506]
[1757430359505,0.001,4301.1,4300.7,2.32517304]
[1757430359806,0.001,4301.1,4300.6,2.32525694]
[1757430360010,0.001,4301.1,4300.5,1.38820661]
[1757430360395,2.32600023,4301.1,4300.5,0.33760661]
[1757430360600,0.001,4301.1,4300.3,3.0]
[1757430360804,0.4639,4301.0,4300.3,3.0]
[1757430361198,0.4639,4301.0,4300.4,2.32535021]
[1757430361425,0.4639,4300.9,4300.4,2.32536145]
[1757430361622,0.4639,4300.9,4300.3,3.0]
[1757430361928,2.32504415,4301.0,4300.3,3.0]
[1757430362136,0.001,4301.1,4300.4,2.32536047]
[1757430362633,0.001,4301.1,4300.3,3.0]
[1757430362836,0.025,4300.8,4300.3,3.0]
[1757430363213,0.025,4300.8,4300.0,0.002]
[1757430363440,0.025,4300.8,4300.1,5.32552665]
[1757430363741,0.025,4300.8,4300.3,3.0]
[1757430363900,2.35015691,4300.8,4300.1,2.32552705]
[1757430364496,0.46457994,4300.7,4300.0,0.002]
[1757430364730,0.2958,4300.2,4300.0,0.002]
[1757430365132,0.792,4300.6,4300.0,0.7083]
[1757430365300,2.32531728,4300.5,4300.0,0.7083]
[1757430365497,2.325424,4300.3,4300.0,0.002]
[1757430365701,2.62132731,4300.1,4300.0,0.002]
[1757430366140,3.06932731,4300.1,4300.0,0.002]
[1757430366941,0.7438,4300.1,4300.0,0.002]
[1757430367109,3.06932731,4300.1,4300.0,0.002]
[1757430368613,3.60880213,4300.1,4300.0,0.002]
[1757430368812,7.54880213,4300.1,4300.0,0.002]
[1757430369138,7.00932731,4300.1,4300.0,0.002]
[1757430370037,7.00932731,4300.1,4299.5,0.002]
[1757430370038,3.11779774,4299.6,4299.5,0.002]
[1757430370206,8.85837768,4299.6,4299.5,0.002]
[1757430370538,10.34631211,4299.6,4299.5,0.002]
[1757430370836,11.61351587,4299.6,4299.5,0.002]
[1757430371416,14.8271536,4299.6,4299.5,0.002]
[1757430371737,14.82725849,4299.6,4299.5,0.002]
[1757430371901,7.34285849,4299.6,4299.5,0.002]
[1757430372102,9.01002998,4299.6,4299.5,0.002]
[1757430372308,8.26622998,4299.6,4299.5,0.002]
[1757430372738,8.56202998,4299.6,4299.5,0.002]
[1757430372909,9.01002998,4299.6,4299.5,0.002]
[1757430373532,8.26622998,4299.6,4299.5,0.002]
[1757430373738,9.01002998,4299.6,4299.5,0.002]
[1757430373933,2.00043224,4299.6,4299.5,0.996]
[1757430374120,5.725,4299.6,4299.5,0.996]
[1757430374949,2.32544277,4300.3,4299.5,3.73554133]
[1757430374950,3.942,4299.8,4299.5,3.73554133]
[1757430375242,1.785,4300.3,4299.6,1.72614986]
[1757430375447,1.785,4300.3,4299.7,0.7063]
[1757430375448,3.941,4300.2,4299.7,0.7063]
[1757430375605,1.785,4300.3,4300.1,0.2877]
[1757430375805,1.785,4300.3,4300.2,0.7063]
[1757430376054,3.941,4300.7,4300.2,0.994]
[1757430376350,3.941,4300.7,4300.3,0.7063]
[1757430376509,3.941,4300.7,4299.8,0.4137]
[1757430376510,3.941,4300.7,4300.0,2.32556312]
[1757430376839,3.941,4300.7,4300.1,0.7063]
[1757430376840,6.26620839,4300.7,4300.1,0.7063]
[1757430377040,2.32526933,4300.6,4300.1,0.7063]
[1757430377243,6.26621555,4300.7,4300.2,0.7063]
[1757430377407,3.941,4300.7,4300.3,0.7063]
[1757430377613,2.32527146,4300.6,4300.3,0.7063]
[1757430377952,3.941,4300.7,4299.5,0.002]
[1757430378160,2.32552975,4300.1,4299.6,0.73567]
[1757430378456,2.32552975,4300.1,4299.5,0.002]
[1757430378457,0.448,4300.5,4299.7,0.7063]
[1757430378760,2.32536508,4300.4,4299.7,0.7063]
[1757430378941,3.941,4300.3,4299.7,3.7063]
[1757430379110,3.941,4300.3,4299.7,3.03203256]
[1757430379310,2.32525912,4300.6,4299.8,2.32568258]
[1757430379532,3.94,4300.5,4299.8,2.32568258]
[1757430379952,3.94,4300.5,4300.4,0.2877]
[1757430380248,3.94,4300.5,4300.4,0.994]
[1757430380656,3.94,4300.5,4300.4,0.7063]
[1757430380874,3.94,4300.5,4300.4,0.994]
[1757430381366,3.942,4300.7,4300.4,0.994]
[1757430381668,2.35019265,4300.8,4300.5,0.7063]
[1757430381816,0.116,4300.4,4299.9,2.32563278]
[1757430382018,0.116,4300.4,4300.0,1.0617506]
[1757430382259,0.116,4300.4,4300.3,0.2877]
[1757430382425,0.116,4300.4,4300.3,2.63637334]
[1757430382631,0.025,4300.8,4300.6,2.32524413]
[1757430382919,0.025,4300.8,4300.4,0.7063]
[1757430383155,0.025,4300.8,4300.2,0.116]
[1757430383369,0.116,4300.4,4299.9,0.7063]
[1757430383659,0.116,4300.4,4299.9,1.88641733]
[1757430384054,2.44141175,4300.4,4299.9,1.88641733]
[1757430384258,2.44138085,4300.4,4299.9,1.18011733]
[1757430384457,2.44138085,4300.4,4299.5,1.787]
[1757430384458,0.2167383,4300.6,4299.5,1.787]
[1757430384631,0.116,4299.8,4299.5,1.787]
[1757430385022,2.32579774,4299.6,4299.5,0.002]
[1757430385378,2.62159774,4299.6,4299.5,0.002]
[1757430385522,7.57180682,4299.6,4299.5,0.002]
[1757430385867,7.78860333,4299.6,4299.5,0.002]
[1757430386760,9.10590333,4299.6,4299.5,0.002]
[1757430387121,8.58060333,4299.6,4299.5,0.002]
[1757430387430,4.63960333,4299.6,4299.5,0.002]
[1757430387636,3.28639425,4299.6,4299.5,0.002]
[1757430387823,6.77839425,4299.6,4299.5,0.002]
[1757430388163,4.90059651,4299.6,4299.5,0.002]
[1757430388458,3.28639425,4299.6,4299.5,0.002]
[1757430388661,7.01159774,4299.6,4299.5,0.002]
[1757430388860,7.22839425,4299.6,4299.5,0.002]
[1757430389021,8.36220348,4299.6,4299.5,0.002]
[1757430390465,8.88750348,4299.6,4299.5,0.002]
[1757430390690,9.8936684,4299.6,4299.5,0.002]
[1757430390870,10.02215653,4299.6,4299.5,0.002]
[1757430391041,13.02215653,4299.6,4299.5,0.002]
[1757430391403,13.1944294,4299.6,4299.5,0.002]
[1757430392653,12.49685653,4299.6,4299.5,0.002]
[1757430393706,13.02215653,4299.6,4299.5,0.002]
[1757430393902,9.49685653,4299.6,4299.5,0.002]
[1757430394802,10.02215653,4299.6,4299.5,0.002]
[1757430395166,13.02215653,4299.6,4299.5,0.002]
[1757430395573,12.49685653,4299.6,4299.5,0.002]
[1757430395989,12.49585653,4299.6,4299.5,0.002]
[1757430397355,13.02115653,4299.6,4299.5,0.002]
[1757430397555,12.49585653,4299.6,4299.5,0.002]
[1757430398486,7.81105653,4299.6,4299.5,0.002]
[1757430398784,11.9170684,4299.6,4299.5,0.002]
[1757430398984,12.47439283,4299.6,4299.5,0.002]
[1757430399953,9.04549283,4299.6,4299.5,0.002]
[1757430400161,8.9170684,4299.6,4299.5,0.002]
[1757430400574,8.6912299,4299.6,4299.5,0.002]
[1757430401185,3.32292067,4299.6,4299.5,0.002]
[1757430401387,4.15779651,4299.6,4299.5,0.9732]
[1757430401568,6.48359425,4299.6,4299.5,0.9732]
[1757430402358,0.21679651,4299.6,4299.5,0.9732]
[1757430402599,0.21679651,4299.7,4299.5,0.9732]
[1757430402757,1.784,4299.8,4299.6,0.6631]
[1757430403092,2.857,4300.0,4299.9,2.32563547]
[1757430403299,0.001,4300.3,4299.9,2.32563547]
[1757430403300,3.941,4300.2,4300.1,2.32551684]
[1757430403452,0.001,4300.3,4300.2,2.32547323]
[1757430403655,0.001,4300.3,4300.2,4.00586224]
[1757430403856,0.001,4300.3,4300.2,4.31396224]
[1757430408490,0.001,4300.3,4300.2,3.90026224]
[1757430408791,0.0002,4300.3,4300.2,3.90026224]
[1757430408994,0.0002,4300.3,4300.2,4.31396224]
[1757430409791,0.0002,4300.3,4300.2,1.57478901]
[1757430410493,0.0002,4300.3,4300.2,3.90026224]
[1757430410690,0.0002,4300.3,4300.2,4.31396224]
[1757430411063,0.0002,4300.3,4300.2,3.90026224]
[1757430411996,0.0002,4300.3,4300.2,1.57478901]
[1757430412292,0.0002,4300.3,4300.2,0.9712]
[1757430412495,0.0002,4300.3,4300.2,3.29667323]
[1757430413871,0.0002,4300.3,4300.2,0.9712]
[1757430414685,0.0002,4300.3,4300.2,3.29667323]
[1757430414895,0.0002,4300.3,4300.2,0.9712]
[1757430415191,0.0002,4300.3,4300.2,1.30087796]
[1757430415893,0.0002,4300.3,4300.2,0.9712]
[1757430416094,0.0002,4300.3,4300.2,3.29667323]
[1757430417023,0.0002,4300.3,4300.2,3.71037323]
[1757430417320,0.0002,4300.3,4300.2,3.29667323]
[1757430418115,0.0002,4300.3,4300.2,6.29667323]
[1757430418285,0.0002,4300.3,4300.2,7.17049865]
[1757430418478,0.0002,4300.3,4300.2,11.52419865]
[1757430420983,0.0002,4300.3,4300.2,11.80758218]
[1757430421600,0.0002,4300.3,4300.2,13.46287326]
[1757430421796,1e-08,4300.8,4300.7,2.32520287]
[1757430422001,1e-08,4300.8,4300.7,9.28845489]
[1757430422317,1e-08,4300.8,4300.7,10.77840287]
[1757430423119,1e-08,4300.8,4300.7,10.89334258]
[1757430423345,1e-08,4300.8,4300.7,6.42470287]
[1757430423650,0.28560001,4300.8,4300.3,2.45064543]
[1757430423844,0.4473,4300.7,4300.4,3.939]
[1757430424126,0.2856,4300.5,4300.4,3.939]
[1757430424291,0.2856,4300.5,4300.4,6.939]
[1757430424492,1e-08,4300.8,4300.5,3.0]
[1757430424714,1e-08,4300.8,4300.6,2.32525694]
[1757430424715,0.4473,4300.7,4300.6,2.32525694]
[1757430424892,0.7329,4300.7,4300.5,5.32530128]
[1757430425092,0.4473,4300.6,4300.5,5.32530128]
[1757430425303,0.7329,4300.6,4300.5,5.32530128]
[1757430425752,0.7329,4300.6,4300.5,5.32531101]
[1757430425887,0.7329,4300.6,4300.5,3.0]
[1757430426089,1.2323,4300.6,4300.0,3.939]
[1757430426438,0.4473,4300.5,4300.0,3.0]
[1757430426744,0.4473,4300.5,4299.5,0.002]
[1757430426745,0.01657994,4300.4,4299.8,0.025]
[1757430426889,0.2856,4299.9,4299.8,0.025]
[1757430427090,3.55793547,4299.9,4299.8,0.025]
[1757430427445,3.11774365,4299.7,4299.5,0.002]
[1757430427906,4.56644133,4299.7,4299.5,0.002]
[1757430428231,5.64954901,4299.7,4299.5,0.002]
[1757430429959,4.35814901,4299.7,4299.5,0.002]
[1757430430274,4.44099768,4299.7,4299.5,0.002]
[1757430430560,1.784,4300.3,4299.8,2.32567925]
[1757430430731,1.784,4300.3,4299.6,0.9855]
[1757430430732,0.4473,4300.2,4299.7,2.3257306]
[1757430431425,0.4473,4300.2,4299.6,0.002]
[1757430431426,0.4473,4300.1,4299.6,0.002]
[1757430431622,0.2856,4299.7,4299.6,0.002]
[1757430432163,0.7329,4299.7,4299.6,0.002]
[1757430432662,0.21671811,4300.2,4300.0,2.32558072]
[1757430432829,0.001,4300.9,4300.1,0.9835]
[1757430433029,0.21684494,4300.7,4300.2,2.3254324]
[1757430433352,0.21684494,4300.7,4300.3,0.6934]
[1757430433561,0.02500001,4300.8,4300.4,2.32531551]
[1757430433759,0.116,4300.5,4300.4,0.6934]
[1757430434336,0.116,4300.5,4300.3,2.62729438]
[1757430434543,0.116,4300.5,4300.3,0.30188447]
[1757430434731,0.116,4300.5,4300.1,2.32552731]
[1757430434931,0.116,4300.5,4300.0,3.6934]
[1757430434932,0.116,4300.5,4300.2,2.32546031]
[1757430435268,0.2856,4300.1,4299.6,0.002]
[1757430435636,0.2856,4300.1,4299.6,2.32779626]
[1757430435637,0.116,4299.8,4299.6,2.32779626]
[1757430436521,0.116,4299.8,4299.6,0.002]
[1757430438925,0.7329,4299.7,4299.6,0.002]
[1757430439126,0.116,4299.8,4299.6,2.32778232]
[1757430439362,0.116,4299.8,4299.6,0.002]
[1757430441231,0.2856,4299.7,4299.6,0.002]
[1757430441457,0.7329,4299.7,4299.6,0.002]
[1757430441653,3.37609974,4299.7,4299.6,0.002]
[1757430441853,15.92214338,4299.7,4299.6,0.002]
[1757430442455,16.13667365,4299.7,4299.6,0.002]
[1757430442635,16.26538298,4299.7,4299.6,0.002]
[1757430443269,16.13667365,4299.7,4299.6,0.002]
[1757430448344,11.71947365,4299.7,4299.6,0.002]
[1757430448566,13.33273,4299.7,4299.6,0.002]
[1757430448938,15.65847365,4299.7,4299.6,0.002]
[1757430449340,0.21684364,4299.7,4299.6,0.2921]
[1757430449578,3.939,4299.7,4299.6,0.9855]
[1757430449783,3.939,4299.7,4299.6,3.31126067]
[1757430450443,1.785,4300.2,4299.6,3.31126067]
[1757430450644,3.939,4300.1,4299.8,2.32564238]
[1757430450874,0.21644085,4300.0,4299.9,0.6934]
[1757430451078,3.939,4300.1,4299.9,3.30913547]
[1757430451313,1.785,4300.2,4300.0,0.6934]
[1757430451512,3.939,4300.1,4300.0,0.6934]
[1757430451674,4.15550826,4300.1,4300.0,0.6934]
[1757430452107,1.785,4300.2,4300.0,0.6934]
[1757430452323,3.939,4300.1,4300.0,0.6934]
[1757430452492,0.21652734,4300.1,4300.0,0.6934]
[1757430452691,3.939,4300.1,4300.0,0.6934]
[1757430452996,3.939,4300.1,4299.6,0.33332607]
[1757430452997,0.116,4300.0,4299.6,0.002]
[1757430453324,2.32570499,4299.8,4299.6,0.002]
[1757430453506,1.29792734,4299.7,4299.6,0.002]
[1757430454122,4.08457099,4299.7,4299.6,0.002]
[1757430454284,1.75882734,4299.7,4299.6,0.002]
[1757430454484,5.08507737,4299.7,4299.6,0.002]
[1757430454926,0.21652734,4299.7,4299.6,0.002]
[1757430455228,4.15552734,4299.7,4299.6,0.6706]
[1757430455607,4.15552734,4299.7,4299.6,0.002]
[1757430455922,4.15552734,4299.7,4299.6,0.9571]
[1757430456124,4.15552734,4299.7,4299.6,0.6706]
[1757430456294,4.15552734,4299.7,4299.6,0.002]
[1757430456983,4.15552734,4299.7,4299.6,0.6706]